[Event "Early-Titled-Tuesday-Blitz-May-14-2024"]
[Site "Chess.com"]
[Date "2024.05.14"]
[Round "6"]
[White "KononenkoD"]
[Black "LionKing2367890"]
[Result "1-0"]
[WhiteElo "2617"]
[BlackElo "2260"]
[TimeControl "180+1"]
[EndTime "9:09:49 PDT"]
[Termination "KononenkoD won by resignation"]

1. e4 {[%clk 0:03:00]} 1... e5 {[%clk 0:02:59.8]} 2. Nf3 {[%clk 0:03:00]} 2...
Nc6 {[%clk 0:02:59.8]} 3. d4 {[%clk 0:03:00.3]} 3... exd4 {[%clk 0:02:59.8]} 4.
Nxd4 {[%clk 0:03:01.2]} 4... Nf6 {[%clk 0:02:59.9]} 5. Nc3 {[%clk 0:03:01.2]}
5... Bb4 {[%clk 0:02:59.7]} 6. Nxc6 {[%clk 0:03:01.6]} 6... bxc6 {[%clk
0:02:59.5]} 7. Bd3 {[%clk 0:03:02]} 7... d5 {[%clk 0:02:58.9]} 8. O-O {[%clk
0:03:02]} 8... Bxc3 {[%clk 0:02:55.2]} 9. bxc3 {[%clk 0:03:01.8]} 9... dxe4
{[%clk 0:02:55.2]} 10. Bc4 {[%clk 0:02:59.9]} 10... O-O {[%clk 0:02:54.4]} 11.
Bf4 {[%clk 0:02:57.9]} 11... Nd5 {[%clk 0:02:49.8]} 12. Bg3 {[%clk 0:02:47.3]}
12... Nxc3 {[%clk 0:02:33.7]} 13. Qxd8 {[%clk 0:02:37.1]} 13... Rxd8 {[%clk
0:02:33.7]} 14. Bxc7 {[%clk 0:02:37.3]} 14... Rd2 {[%clk 0:02:33.8]} 15. Bb3
{[%clk 0:02:27.7]} 15... Ba6 {[%clk 0:02:21.9]} 16. Ba5 {[%clk 0:02:15.5]} 16...
Ne2+ {[%clk 0:02:05.9]} 17. Kh1 {[%clk 0:02:15.2]} 17... Rd7 {[%clk 0:02:04.8]}
18. Rfe1 {[%clk 0:02:11.6]} 18... g6 {[%clk 0:01:50.3]} 19. h3 {[%clk
0:02:07.8]} 19... Kg7 {[%clk 0:01:45.4]} 20. c4 {[%clk 0:01:56.5]} 20... Nd4
{[%clk 0:01:43.9]} 21. Rxe4 {[%clk 0:01:54.9]} 21... Nxb3 {[%clk 0:01:44.1]} 22.
axb3 {[%clk 0:01:54.3]} 22... Rd3 {[%clk 0:01:34.8]} 23. b4 {[%clk 0:01:23.4]}
23... Bc8 {[%clk 0:01:18]} 24. Re8 {[%clk 0:01:12.3]} 24... Bb7 {[%clk
0:01:17.9]} 25. Re7 {[%clk 0:01:10.3]} 25... Bc8 {[%clk 0:01:17.9]} 26. Bc7
{[%clk 0:01:00.8]} 26... Rd7 {[%clk 0:00:54.1]} 27. Be5+ {[%clk 0:00:54.8]}
27... Kf8 {[%clk 0:00:54.1]} 28. Rxd7 {[%clk 0:00:44.4]} 28... Bxd7 {[%clk
0:00:55]} 29. Ra6 {[%clk 0:00:42.3]} 29... Ke7 {[%clk 0:00:50.8]} 30. Bd4 {[%clk
0:00:39.8]} 30... Kd8 {[%clk 0:00:48.7]} 31. Bxa7 {[%clk 0:00:38.3]} 31... Kc8
{[%clk 0:00:47.6]} 32. Ra5 {[%clk 0:00:35.7]} 32... Kb7 {[%clk 0:00:45.3]} 33.
Bb6 {[%clk 0:00:23.9]} 33... Rxa5 {[%clk 0:00:44]} 34. bxa5 {[%clk 0:00:24.7]}
34... Be6 {[%clk 0:00:44]} 35. c5 {[%clk 0:00:24.6]} 35... Bc4 {[%clk
0:00:44.2]} 36. Kh2 {[%clk 0:00:24]} 36... Kc8 {[%clk 0:00:44.5]} 37. Kg3 {[%clk
0:00:23.9]} 37... Kd7 {[%clk 0:00:45]} 38. Kf4 {[%clk 0:00:24.1]} 38... f6
{[%clk 0:00:35.3]} 39. g4 {[%clk 0:00:20]} 39... Ke6 {[%clk 0:00:35.1]} 40. h4
{[%clk 0:00:19.4]} 40... h6 {[%clk 0:00:34.7]} 41. Bd8 {[%clk 0:00:17.7]} 41...
h5 {[%clk 0:00:27.3]} 42. gxh5 {[%clk 0:00:15.6]} 42... gxh5 {[%clk 0:00:27.5]}
43. Ke3 {[%clk 0:00:14.9]} 43... Kf5 {[%clk 0:00:24.8]} 44. Kd4 {[%clk
0:00:14.5]} 44... Bf1 {[%clk 0:00:24.7]} 45. Kc3 {[%clk 0:00:12.8]} 45... Ke5
{[%clk 0:00:22.9]} 46. Kd2 {[%clk 0:00:12.3]} 46... f5 {[%clk 0:00:22.6]} 47.
Ke3 {[%clk 0:00:11.6]} 47... Kd5 {[%clk 0:00:20.3]} 48. Be7 {[%clk 0:00:11]}
48... Ke5 {[%clk 0:00:18.9]} 49. Kf3 {[%clk 0:00:10.1]} 49... Bb5 {[%clk
0:00:18.4]} 50. Bd6+ {[%clk 0:00:10.3]} 50... Ke6 {[%clk 0:00:18.4]} 51. Kf4
{[%clk 0:00:10.8]} 51... Be2 {[%clk 0:00:18.5]} 52. Kg5 {[%clk 0:00:09.8]} 52...
Kf7 {[%clk 0:00:16.7]} 53. f3 {[%clk 0:00:09.2]} 53... Bb5 {[%clk 0:00:14.4]}
54. Kxf5 {[%clk 0:00:08.6]} 54... Bd3+ {[%clk 0:00:14.5]} 55. Kg5 {[%clk
0:00:08.7]} 55... Bb5 {[%clk 0:00:14.8]} 56. Kxh5 {[%clk 0:00:08.8]} 56... Be2
{[%clk 0:00:15.1]} 57. Kg5 {[%clk 0:00:09.7]} 57... Bb5 {[%clk 0:00:15]} 58. f4
{[%clk 0:00:09.2]} 58... Kg8 {[%clk 0:00:15.3]} 59. h5 {[%clk 0:00:09.3]} 59...
Kh7 {[%clk 0:00:15.7]} 60. Kf6 {[%clk 0:00:07.9]} 60... Bc4 {[%clk 0:00:14.9]}
61. Ke7 {[%clk 0:00:07.6]} 61... Bb5 {[%clk 0:00:14.3]} 62. Kd7 {[%clk
0:00:07.9]} 62... Kg8 {[%clk 0:00:14.8]} 63. Kc7 {[%clk 0:00:08.7]} 63... Kf7
{[%clk 0:00:15.1]} 64. Kb7 {[%clk 0:00:09.4]} 1-0

[Event "Early-Titled-Tuesday-Blitz-May-14-2024"]
[Site "Chess.com"]
[Date "2024.05.14"]
[Round "6"]
[White "Likvidator228"]
[Black "cukus"]
[Result "1-0"]
[WhiteElo "2542"]
[BlackElo "2375"]
[TimeControl "180+1"]
[EndTime "9:09:57 PDT"]
[Termination "Likvidator228 won by checkmate"]

1. d4 {[%clk 0:02:59.8]} 1... Nf6 {[%clk 0:03:00]} 2. Nf3 {[%clk 0:02:59.4]}
2... g6 {[%clk 0:02:59.7]} 3. Bf4 {[%clk 0:02:58.7]} 3... Bg7 {[%clk 0:02:58.3]}
4. e3 {[%clk 0:02:59.4]} 4... O-O {[%clk 0:02:57.9]} 5. h3 {[%clk 0:03:00]} 5...
c5 {[%clk 0:02:54.7]} 6. c3 {[%clk 0:03:00.2]} 6... d6 {[%clk 0:02:50.1]} 7.
Nbd2 {[%clk 0:03:00.3]} 7... Qc7 {[%clk 0:02:44.4]} 8. Bc4 {[%clk 0:02:56.8]}
8... Nc6 {[%clk 0:02:31.4]} 9. O-O {[%clk 0:02:56.1]} 9... Na5 {[%clk
0:02:29.2]} 10. Be2 {[%clk 0:02:53.1]} 10... cxd4 {[%clk 0:02:24.9]} 11. cxd4
{[%clk 0:02:50]} 11... b6 {[%clk 0:02:20.7]} 12. Rc1 {[%clk 0:02:49.8]} 12...
Qd7 {[%clk 0:02:20.4]} 13. b4 {[%clk 0:02:44.1]} 13... Nc6 {[%clk 0:02:09.8]}
14. Bb5 {[%clk 0:02:26.5]} 14... Bb7 {[%clk 0:02:09.5]} 15. Qa4 {[%clk
0:02:25.4]} 15... Rac8 {[%clk 0:02:02]} 16. e4 {[%clk 0:02:13]} 16... a6 {[%clk
0:01:53.9]} 17. Bxa6 {[%clk 0:02:02.8]} 17... Bxa6 {[%clk 0:01:54.1]} 18. Qxa6
{[%clk 0:02:03]} 18... Nxb4 {[%clk 0:01:54.2]} 19. Qxb6 {[%clk 0:01:55.7]} 19...
Nxa2 {[%clk 0:01:42.2]} 20. Ra1 {[%clk 0:01:43]} 20... Nc3 {[%clk 0:01:38.1]}
21. Ra7 {[%clk 0:01:40.6]} 21... Qd8 {[%clk 0:01:28.9]} 22. Qxd8 {[%clk
0:01:37.8]} 22... Rfxd8 {[%clk 0:01:28.8]} 23. Rxe7 {[%clk 0:01:35.6]} 23... Bf8
{[%clk 0:01:29.3]} 24. Bxd6 {[%clk 0:01:04.6]} 24... Rxd6 {[%clk 0:01:18.9]} 25.
Re5 {[%clk 0:01:04.7]} 25... Re6 {[%clk 0:01:10.2]} 26. Rxe6 {[%clk 0:01:02.9]}
26... fxe6 {[%clk 0:01:10.5]} 27. Ra1 {[%clk 0:00:52.6]} 27... Nfxe4 {[%clk
0:01:04.9]} 28. Nxe4 {[%clk 0:00:50.3]} 28... Nxe4 {[%clk 0:01:05.2]} 29. Re1
{[%clk 0:00:50.7]} 29... Nd6 {[%clk 0:00:49.9]} 30. Rxe6 {[%clk 0:00:51.1]}
30... Nf5 {[%clk 0:00:50.2]} 31. g4 {[%clk 0:00:48.4]} 31... Ng7 {[%clk
0:00:49.4]} 32. Ra6 {[%clk 0:00:47.2]} 32... Rd8 {[%clk 0:00:49.1]} 33. Kf1
{[%clk 0:00:36.1]} 33... Ne8 {[%clk 0:00:42.9]} 34. Ke2 {[%clk 0:00:35.3]} 34...
Nd6 {[%clk 0:00:41.3]} 35. Kd3 {[%clk 0:00:27.8]} 35... Be7 {[%clk 0:00:34.6]}
36. Ne5 {[%clk 0:00:27]} 36... Nb5 {[%clk 0:00:32]} 37. Nc6 {[%clk 0:00:23.9]}
37... Rd7 {[%clk 0:00:23.5]} 38. Kc4 {[%clk 0:00:21.3]} 38... Nd6+ {[%clk
0:00:21.2]} 39. Kd5 {[%clk 0:00:21.8]} 39... Nc8+ {[%clk 0:00:16.1]} 40. Ke5
{[%clk 0:00:19]} 40... Bd6+ {[%clk 0:00:15.2]} 41. Ke6 {[%clk 0:00:17.6]} 41...
Rc7 {[%clk 0:00:12]} 42. d5 {[%clk 0:00:18]} 42... Kg7 {[%clk 0:00:11.8]} 43.
Ra8 {[%clk 0:00:16.8]} 43... Bh2 {[%clk 0:00:10.5]} 44. f3 {[%clk 0:00:14.7]}
44... Bg3 {[%clk 0:00:10.3]} 45. Ra6 {[%clk 0:00:10.7]} 45... Bf4 {[%clk
0:00:07]} 46. h4 {[%clk 0:00:10.4]} 46... Bg3 {[%clk 0:00:06.8]} 47. h5 {[%clk
0:00:11]} 47... gxh5 {[%clk 0:00:06.4]} 48. gxh5 {[%clk 0:00:11.9]} 48... Bf4
{[%clk 0:00:07]} 49. Ra4 {[%clk 0:00:11.7]} 49... Bh2 {[%clk 0:00:05.8]} 50. f4
{[%clk 0:00:10.5]} 50... Rb7 {[%clk 0:00:03]} 51. f5 {[%clk 0:00:10.7]} 51...
Nb6 {[%clk 0:00:02.4]} 52. f6+ {[%clk 0:00:10.9]} 52... Kf8 {[%clk 0:00:02.3]}
53. Rg4 {[%clk 0:00:09]} 53... Nc8 {[%clk 0:00:02]} 54. h6 {[%clk 0:00:05.9]}
54... Rc7 {[%clk 0:00:01.9]} 55. Rg7 {[%clk 0:00:06.4]} 55... Rxg7 {[%clk
0:00:01.7]} 56. hxg7+ {[%clk 0:00:05]} 56... Kg8 {[%clk 0:00:01.9]} 57. Ne7+
{[%clk 0:00:04.8]} 57... Nxe7 {[%clk 0:00:02.1]} 58. Kxe7 {[%clk 0:00:05.7]}
58... Be5 {[%clk 0:00:02]} 59. f7+ {[%clk 0:00:05.9]} 59... Kxg7 {[%clk
0:00:01.9]} 60. f8=Q+ {[%clk 0:00:06.8]} 60... Kg6 {[%clk 0:00:02.4]} 61. Qf7+
{[%clk 0:00:07]} 61... Kh6 {[%clk 0:00:02.1]} 62. Qe6+ {[%clk 0:00:07.3]} 62...
Kg7 {[%clk 0:00:01.8]} 63. Qxe5+ {[%clk 0:00:07.7]} 63... Kg8 {[%clk 0:00:02.7]}
64. d6 {[%clk 0:00:08.3]} 64... h6 {[%clk 0:00:02]} 65. d7 {[%clk 0:00:08.6]}
65... Kh7 {[%clk 0:00:02.9]} 66. d8=Q {[%clk 0:00:08.4]} 66... Kg6 {[%clk
0:00:03.8]} 67. Qg8# {[%clk 0:00:08.4]} 1-0

[Event "Early-Titled-Tuesday-Blitz-May-14-2024"]
[Site "Chess.com"]
[Date "2024.05.14"]
[Round "6"]
[White "flubs"]
[Black "ZeZacarias"]
[Result "1-0"]
[WhiteElo "2430"]
[BlackElo "2047"]
[TimeControl "180+1"]
[EndTime "9:09:57 PDT"]
[Termination "flubs won by checkmate"]

1. c4 {[%clk 0:02:59]} 1... e5 {[%clk 0:02:59.5]} 2. Nc3 {[%clk 0:02:58.6]} 2...
d6 {[%clk 0:02:58.8]} 3. g3 {[%clk 0:02:57.9]} 3... Nc6 {[%clk 0:02:59.1]} 4.
Bg2 {[%clk 0:02:58.2]} 4... Be6 {[%clk 0:02:59.8]} 5. d3 {[%clk 0:02:57.5]} 5...
Qd7 {[%clk 0:03:00.4]} 6. h4 {[%clk 0:02:57.4]} 6... g6 {[%clk 0:02:59.5]} 7.
Nf3 {[%clk 0:02:57.5]} 7... h6 {[%clk 0:02:59.2]} 8. Bd2 {[%clk 0:02:55.9]} 8...
Bg7 {[%clk 0:02:59.3]} 9. Nd5 {[%clk 0:02:55.1]} 9... Nd8 {[%clk 0:02:58.7]} 10.
Qc1 {[%clk 0:02:50.6]} 10... c6 {[%clk 0:02:58.8]} 11. Nc3 {[%clk 0:02:51]}
11... Ne7 {[%clk 0:02:58.6]} 12. h5 {[%clk 0:02:48.9]} 12... g5 {[%clk
0:02:58.2]} 13. Rb1 {[%clk 0:02:35.6]} 13... f5 {[%clk 0:02:38.2]} 14. b4 {[%clk
0:02:21.2]} 14... f4 {[%clk 0:02:35.8]} 15. Ne4 {[%clk 0:02:17.3]} 15... O-O
{[%clk 0:02:33.8]} 16. b5 {[%clk 0:02:11.9]} 16... Rc8 {[%clk 0:02:27.3]} 17.
bxc6 {[%clk 0:02:11.2]} 17... Ndxc6 {[%clk 0:02:18.9]} 18. Qa3 {[%clk 0:02:08]}
18... Nf5 {[%clk 0:02:02.7]} 19. g4 {[%clk 0:02:01.4]} 19... Nfd4 {[%clk
0:01:52.4]} 20. Qxd6 {[%clk 0:01:55.5]} 20... Bxg4 {[%clk 0:01:32]} 21. Qxd7
{[%clk 0:01:50.5]} 21... Bxd7 {[%clk 0:01:30.2]} 22. Rxb7 {[%clk 0:01:49.8]}
22... Bg4 {[%clk 0:01:16.7]} 23. Nxd4 {[%clk 0:01:37.4]} 23... Nxd4 {[%clk
0:01:13.7]} 24. Bc3 {[%clk 0:01:28.3]} 24... f3 {[%clk 0:01:06.6]} 25. exf3
{[%clk 0:01:21.6]} 25... Nxf3+ {[%clk 0:00:58.4]} 26. Bxf3 {[%clk 0:01:16.6]}
26... Bxf3 {[%clk 0:00:59.3]} 27. Rg1 {[%clk 0:00:41.6]} 27... Bxe4 {[%clk
0:00:58.8]} 28. dxe4 {[%clk 0:00:41.8]} 28... Rxc4 {[%clk 0:00:59]} 29. Rg3
{[%clk 0:00:32.6]} 29... Rxe4+ {[%clk 0:00:58.2]} 30. Kf1 {[%clk 0:00:31.8]}
30... Ra4 {[%clk 0:00:55.4]} 31. Bb4 {[%clk 0:00:25.8]} 31... Rf4 {[%clk
0:00:43.6]} 32. a3 {[%clk 0:00:23.8]} 32... a5 {[%clk 0:00:42.1]} 33. Bd6 {[%clk
0:00:21.9]} 33... Rad4 {[%clk 0:00:34.2]} 34. Be7 {[%clk 0:00:20.8]} 34... e4
{[%clk 0:00:27.7]} 35. Rgb3 {[%clk 0:00:17.9]} 35... Rd2 {[%clk 0:00:21]} 36.
Bc5 {[%clk 0:00:17.9]} 36... Rd3 {[%clk 0:00:14.9]} 37. R3b5 {[%clk 0:00:14.3]}
37... e3 {[%clk 0:00:14.2]} 38. Ke2 {[%clk 0:00:12.4]} 38... Rd2+ {[%clk
0:00:13.7]} 39. Kxe3 {[%clk 0:00:12.4]} 39... Rdxf2 {[%clk 0:00:13.3]} 40. Rd7
{[%clk 0:00:09]} 40... R2f3+ {[%clk 0:00:13.2]} 41. Ke2 {[%clk 0:00:09.4]} 41...
Rh3 {[%clk 0:00:10.8]} 42. Rb8+ {[%clk 0:00:08.6]} 42... Bf8 {[%clk 0:00:09.5]}
43. Rdd8 {[%clk 0:00:04.9]} 43... Rhf3 {[%clk 0:00:09.4]} 44. Bd6 {[%clk
0:00:05]} 44... Rf6 {[%clk 0:00:07.2]} 45. Bc5 {[%clk 0:00:04.1]} 45... R3f5
{[%clk 0:00:06.7]} 46. Be7 {[%clk 0:00:02.9]} 46... Re6+ {[%clk 0:00:06.3]} 47.
Kd3 {[%clk 0:00:03.1]} 47... Rxe7 {[%clk 0:00:06.6]} 48. Ra8 {[%clk 0:00:03.3]}
48... Ref7 {[%clk 0:00:06]} 49. Rd6 {[%clk 0:00:02.8]} 49... R5f6 {[%clk
0:00:05]} 50. Rdd8 {[%clk 0:00:02.2]} 50... g4 {[%clk 0:00:04.9]} 51. Rd4 {[%clk
0:00:01.5]} 51... Rf3+ {[%clk 0:00:03.9]} 52. Ke2 {[%clk 0:00:00.8]} 52... R3f4
{[%clk 0:00:03.3]} 53. Rd5 {[%clk 0:00:00.5]} 53... g3 {[%clk 0:00:03.4]} 54.
Rd6 {[%clk 0:00:01.2]} 54... g2 {[%clk 0:00:03.3]} 55. Rg6+ {[%clk 0:00:02.1]}
55... Kh8 {[%clk 0:00:02.5]} 56. Rxg2 {[%clk 0:00:01.8]} 56... Re4+ {[%clk
0:00:02.1]} 57. Kd3 {[%clk 0:00:01.8]} 57... Re5 {[%clk 0:00:03]} 58. Rg6 {[%clk
0:00:02.2]} 58... Rxh5 {[%clk 0:00:03.3]} 59. Re6 {[%clk 0:00:02.7]} 59... Rff5
{[%clk 0:00:03.1]} 60. Rea6 {[%clk 0:00:03.6]} 60... Rf3+ {[%clk 0:00:03.6]} 61.
Ke4 {[%clk 0:00:03.9]} 61... Rxa3 {[%clk 0:00:03.3]} 62. Rxf8+ {[%clk
0:00:03.9]} 62... Kg7 {[%clk 0:00:02.1]} 63. Rb8 {[%clk 0:00:04.8]} 63... Rh4+
{[%clk 0:00:02.1]} 64. Ke5 {[%clk 0:00:04.9]} 64... Re3+ {[%clk 0:00:02]} 65.
Kd5 {[%clk 0:00:05.5]} 65... Rg3 {[%clk 0:00:02.5]} 66. Rb7+ {[%clk 0:00:04.9]}
66... Kg8 {[%clk 0:00:02]} 67. Ra8# {[%clk 0:00:05.7]} 1-0

[Event "Early-Titled-Tuesday-Blitz-May-14-2024"]
[Site "Chess.com"]
[Date "2024.05.14"]
[Round "6"]
[White "baki83"]
[Black "ReadySkate"]
[Result "0-1"]
[WhiteElo "2923"]
[BlackElo "2737"]
[TimeControl "180+1"]
[EndTime "9:10:00 PDT"]
[Termination "ReadySkate won on time"]

1. e4 {[%clk 0:02:52.4]} 1... c5 {[%clk 0:02:59.8]} 2. Nf3 {[%clk 0:02:52.3]}
2... d6 {[%clk 0:03:00.4]} 3. g3 {[%clk 0:02:52.6]} 3... Nf6 {[%clk 0:02:57.1]}
4. d3 {[%clk 0:02:52.6]} 4... e6 {[%clk 0:02:57.2]} 5. Bg2 {[%clk 0:02:53.2]}
5... Be7 {[%clk 0:02:57.9]} 6. O-O {[%clk 0:02:53.8]} 6... Rf8 {[%clk
0:02:57.4]} 7. Nc3 {[%clk 0:02:53]} 7... Nc6 {[%clk 0:02:57.1]} 8. d4 {[%clk
0:02:51.5]} 8... cxd4 {[%clk 0:02:56.8]} 9. Nxd4 {[%clk 0:02:51.9]} 9... Bd7
{[%clk 0:02:57.4]} 10. Be3 {[%clk 0:02:51.4]} 10... a6 {[%clk 0:02:53.7]} 11. h3
{[%clk 0:02:51.3]} 11... Rc8 {[%clk 0:02:49.7]} 12. Qe2 {[%clk 0:02:50.3]} 12...
Ne5 {[%clk 0:02:48.9]} 13. Rad1 {[%clk 0:02:50.2]} 13... Nc4 {[%clk 0:02:47.6]}
14. Bc1 {[%clk 0:02:50.1]} 14... b5 {[%clk 0:02:47.9]} 15. b3 {[%clk 0:02:34]}
15... Nb6 {[%clk 0:02:39.2]} 16. Qd2 {[%clk 0:02:25.4]} 16... Qc7 {[%clk
0:02:36.8]} 17. Bb2 {[%clk 0:02:22.3]} 17... b4 {[%clk 0:02:34.3]} 18. Nce2
{[%clk 0:02:22.2]} 18... e5 {[%clk 0:02:32.8]} 19. Nf5 {[%clk 0:01:50.7]} 19...
Bxf5 {[%clk 0:02:29.1]} 20. exf5 {[%clk 0:01:51.6]} 20... Qxc2 {[%clk
0:02:25.7]} 21. Bb7 {[%clk 0:01:50.2]} 21... Qxd2 {[%clk 0:02:24.8]} 22. Rxd2
{[%clk 0:01:49.7]} 22... Rc5 {[%clk 0:02:24.2]} 23. Bxa6 {[%clk 0:01:44.5]}
23... Ra5 {[%clk 0:02:23]} 24. Bb7 {[%clk 0:01:40.5]} 24... Kd7 {[%clk
0:02:19.9]} 25. Rc1 {[%clk 0:01:27.1]} 25... Rb8 {[%clk 0:02:14.1]} 26. Bc6+
{[%clk 0:01:25.9]} 26... Kd8 {[%clk 0:02:14.6]} 27. Ba1 {[%clk 0:01:11.4]} 27...
Nfd5 {[%clk 0:02:08.3]} 28. Rcd1 {[%clk 0:01:05.6]} 28... Nf6 {[%clk 0:01:52.6]}
29. g4 {[%clk 0:01:00.8]} 29... Rc8 {[%clk 0:01:49.5]} 30. Bg2 {[%clk 0:00:58]}
30... Nfd7 {[%clk 0:01:45.9]} 31. Ng3 {[%clk 0:00:50.6]} 31... f6 {[%clk
0:01:42.5]} 32. f4 {[%clk 0:00:44.1]} 32... Ke8 {[%clk 0:01:38.2]} 33. fxe5
{[%clk 0:00:40.7]} 33... dxe5 {[%clk 0:01:35.4]} 34. Nh5 {[%clk 0:00:28.7]}
34... Bf8 {[%clk 0:01:31.8]} 35. Be4 {[%clk 0:00:24.3]} 35... Rac5 {[%clk
0:01:31.3]} 36. Bb2 {[%clk 0:00:22]} 36... Ra5 {[%clk 0:01:30.8]} 37. Ba1 {[%clk
0:00:20.8]} 37... Rac5 {[%clk 0:01:30.5]} 38. Kf1 {[%clk 0:00:20.6]} 38... Rc1
{[%clk 0:01:30.2]} 39. Ke2 {[%clk 0:00:20.9]} 39... Rxd1 {[%clk 0:01:30.1]} 40.
Rxd1 {[%clk 0:00:20.9]} 40... Nc5 {[%clk 0:01:25.6]} 41. Bg2 {[%clk 0:00:20.8]}
41... Rc7 {[%clk 0:01:23.4]} 42. Ng3 {[%clk 0:00:17]} 42... Ra7 {[%clk 0:01:23]}
43. Rd2 {[%clk 0:00:17.1]} 43... Nxb3 {[%clk 0:01:19.8]} 44. Bc6+ {[%clk
0:00:17]} 44... Ke7 {[%clk 0:01:17.2]} 45. axb3 {[%clk 0:00:16.8]} 45... Rxa1
{[%clk 0:01:17.8]} 46. Ne4 {[%clk 0:00:16.4]} 46... Rc1 {[%clk 0:01:16.4]} 47.
Bb5 {[%clk 0:00:14.4]} 47... Rc8 {[%clk 0:01:09.2]} 48. h4 {[%clk 0:00:11.5]}
48... Rd8 {[%clk 0:01:08.9]} 49. Rc2 {[%clk 0:00:11.8]} 49... Nd5 {[%clk
0:01:06.4]} 50. g5 {[%clk 0:00:12.2]} 50... h6 {[%clk 0:01:00.7]} 51. gxh6
{[%clk 0:00:09.6]} 51... gxh6 {[%clk 0:01:00.7]} 52. Kf3 {[%clk 0:00:10.4]}
52... h5 {[%clk 0:00:46.6]} 53. Ra2 {[%clk 0:00:09.8]} 53... Rc8 {[%clk
0:00:43.4]} 54. Ra6 {[%clk 0:00:08.8]} 54... Nc7 {[%clk 0:00:37.4]} 55. Rc6
{[%clk 0:00:08]} 55... Kd8 {[%clk 0:00:32.8]} 56. Bc4 {[%clk 0:00:08.2]} 56...
Ne8 {[%clk 0:00:31.6]} 57. Ra6 {[%clk 0:00:06.1]} 57... Be7 {[%clk 0:00:30.7]}
58. Ng3 {[%clk 0:00:03.6]} 58... Nd6 {[%clk 0:00:30.6]} 59. Be6 {[%clk
0:00:02.9]} 59... Rc3+ {[%clk 0:00:31.1]} 60. Kf2 {[%clk 0:00:02.5]} 60... e4
{[%clk 0:00:24.8]} 61. Nxh5 {[%clk 0:00:02.4]} 61... Nb5 {[%clk 0:00:24.4]} 62.
Ra8+ {[%clk 0:00:00.7]} 62... Kc7 {[%clk 0:00:23.4]} 63. Re8 {[%clk 0:00:01.3]}
63... Bc5+ {[%clk 0:00:23.7]} 64. Kg2 {[%clk 0:00:01.7]} 64... e3 {[%clk
0:00:23.4]} 65. Nxf6 {[%clk 0:00:01.3]} 65... Nd6 {[%clk 0:00:23.1]} 66. Re7+
{[%clk 0:00:00.9]} 66... Kc6 {[%clk 0:00:20.1]} 67. Bd5+ {[%clk 0:00:01.1]}
67... Kb5 {[%clk 0:00:20.3]} 68. Bf3 {[%clk 0:00:00.5]} 68... Rc2+ {[%clk
0:00:20]} 69. Kg3 {[%clk 0:00:00.4]} 69... Nxf5+ {[%clk 0:00:20.5]} 70. Kg4
{[%clk 0:00:00.5]} 70... Nxe7 {[%clk 0:00:21.4]} 71. Nd7 {[%clk 0:00:00.6]}
71... e2 {[%clk 0:00:20.2]} 0-1

[Event "Early-Titled-Tuesday-Blitz-May-14-2024"]
[Site "Chess.com"]
[Date "2024.05.14"]
[Round "6"]
[White "DvaHrasta"]
[Black "C_K_G"]
[Result "1-0"]
[WhiteElo "2529"]
[BlackElo "2274"]
[TimeControl "180+1"]
[EndTime "9:10:01 PDT"]
[Termination "DvaHrasta won on time"]

1. c4 {[%clk 0:03:00.9]} 1... e5 {[%clk 0:02:58.2]} 2. g3 {[%clk 0:03:00.6]}
2... Bc5 {[%clk 0:02:57.6]} 3. Bg2 {[%clk 0:02:59.2]} 3... Nc6 {[%clk
0:02:57.1]} 4. Nc3 {[%clk 0:02:57.5]} 4... a6 {[%clk 0:02:56.4]} 5. Nf3 {[%clk
0:02:57.4]} 5... d6 {[%clk 0:02:55.3]} 6. O-O {[%clk 0:02:55.1]} 6... Nge7
{[%clk 0:02:53.5]} 7. e3 {[%clk 0:02:55.1]} 7... Ba7 {[%clk 0:02:53.4]} 8. d4
{[%clk 0:02:54.9]} 8... Bg4 {[%clk 0:02:50.8]} 9. d5 {[%clk 0:02:53.5]} 9... Nb8
{[%clk 0:02:43.1]} 10. h3 {[%clk 0:02:46.6]} 10... Bh5 {[%clk 0:02:42.1]} 11. e4
{[%clk 0:02:40.9]} 11... O-O {[%clk 0:02:35]} 12. g4 {[%clk 0:02:40.6]} 12...
Bg6 {[%clk 0:02:34.5]} 13. Be3 {[%clk 0:02:35.8]} 13... Bxe3 {[%clk 0:02:23.9]}
14. fxe3 {[%clk 0:02:35.8]} 14... Nd7 {[%clk 0:02:24.3]} 15. b4 {[%clk
0:02:31.8]} 15... f6 {[%clk 0:01:58.5]} 16. Nh4 {[%clk 0:02:30.7]} 16... Bf7
{[%clk 0:01:57.1]} 17. Nf5 {[%clk 0:02:27]} 17... Kh8 {[%clk 0:01:54.3]} 18. Rc1
{[%clk 0:02:23.7]} 18... g6 {[%clk 0:01:50.7]} 19. Ng3 {[%clk 0:02:20.5]} 19...
Bg8 {[%clk 0:01:46]} 20. Rc2 {[%clk 0:02:18.3]} 20... c6 {[%clk 0:01:35.7]} 21.
Rcf2 {[%clk 0:02:01.8]} 21... a5 {[%clk 0:01:33.6]} 22. b5 {[%clk 0:01:59.5]}
22... a4 {[%clk 0:01:28.9]} 23. a3 {[%clk 0:01:52.4]} 23... Qb6 {[%clk
0:01:22.4]} 24. Re1 {[%clk 0:01:46.4]} 24... Qc5 {[%clk 0:01:21.1]} 25. Qa1
{[%clk 0:01:27.1]} 25... Qxc4 {[%clk 0:01:13.9]} 26. Rc1 {[%clk 0:01:25.3]}
26... cxb5 {[%clk 0:01:05.8]} 27. Bf1 {[%clk 0:01:24.2]} 27... Qc5 {[%clk
0:01:00.8]} 28. Nxb5 {[%clk 0:01:08.3]} 28... Qxe3 {[%clk 0:00:57.2]} 29. Rc3
{[%clk 0:01:07.6]} 29... Qb6 {[%clk 0:00:51.5]} 30. Kg2 {[%clk 0:01:01.3]} 30...
Rac8 {[%clk 0:00:43.3]} 31. Rfc2 {[%clk 0:00:49.2]} 31... Rxc3 {[%clk
0:00:42.3]} 32. Rxc3 {[%clk 0:00:46.5]} 32... Nc5 {[%clk 0:00:40.7]} 33. Rf3
{[%clk 0:00:37.3]} 33... f5 {[%clk 0:00:34.6]} 34. gxf5 {[%clk 0:00:31]} 34...
gxf5 {[%clk 0:00:34.1]} 35. Kh2 {[%clk 0:00:28.7]} 35... f4 {[%clk 0:00:29.5]}
36. Nh5 {[%clk 0:00:25.6]} 36... Nxe4 {[%clk 0:00:19.2]} 37. Qe1 {[%clk
0:00:21.4]} 37... Ng5 {[%clk 0:00:18.3]} 38. Rf2 {[%clk 0:00:18.3]} 38... Qe3
{[%clk 0:00:16.2]} 39. Qxe3 {[%clk 0:00:17.4]} 39... fxe3 {[%clk 0:00:16.5]} 40.
Rxf8 {[%clk 0:00:17.7]} 40... Nxd5 {[%clk 0:00:16.7]} 41. Nf6 {[%clk 0:00:15.5]}
41... Nxf6 {[%clk 0:00:16.5]} 42. Rxf6 {[%clk 0:00:16.4]} 42... d5 {[%clk
0:00:15.9]} 43. Nd6 {[%clk 0:00:16]} 43... d4 {[%clk 0:00:15.5]} 44. Rf5 {[%clk
0:00:16]} 44... h6 {[%clk 0:00:12.5]} 45. Rxe5 {[%clk 0:00:15.7]} 45... Bh7
{[%clk 0:00:11.5]} 46. Re8+ {[%clk 0:00:13.3]} 46... Kg7 {[%clk 0:00:11.2]} 47.
Re7+ {[%clk 0:00:13.7]} 47... Kg8 {[%clk 0:00:09.6]} 48. Ne8 {[%clk 0:00:11.6]}
48... Bf5 {[%clk 0:00:07.6]} 49. Nf6+ {[%clk 0:00:10.8]} 49... Kf8 {[%clk
0:00:07.3]} 50. Rxb7 {[%clk 0:00:09.8]} 50... d3 {[%clk 0:00:06.9]} 51. Bxd3
{[%clk 0:00:08]} 51... Bxd3 {[%clk 0:00:06.5]} 52. Nd7+ {[%clk 0:00:08.5]} 52...
Ke8 {[%clk 0:00:04.7]} 53. Ne5 {[%clk 0:00:08.4]} 53... e2 {[%clk 0:00:04.2]}
54. Nxd3 {[%clk 0:00:08.1]} 54... Nf3+ {[%clk 0:00:04.3]} 55. Kg3 {[%clk
0:00:08.2]} 55... e1=Q+ {[%clk 0:00:04.5]} 56. Nxe1 {[%clk 0:00:08]} 56... Nxe1
{[%clk 0:00:05.4]} 57. Rb4 {[%clk 0:00:07.9]} 57... Nc2 {[%clk 0:00:02.5]} 58.
Rxa4 {[%clk 0:00:07.8]} 58... Kf7 {[%clk 0:00:03.2]} 59. Ra6 {[%clk 0:00:07.3]}
59... Kg7 {[%clk 0:00:02.6]} 60. a4 {[%clk 0:00:07.7]} 60... Nd4 {[%clk
0:00:01.9]} 61. a5 {[%clk 0:00:07]} 1-0